bitfinex/quotes_BTCUSD_20251031
["timestamp","ask_amount","ask_price","bid_price","bid_amount"]
[1761915515134,3.55905445,109850.0,109840.0,0.00093166]
[1761915515291,3.53227123,109850.0,109840.0,0.00093166]
[1761915515503,3.51798729,109850.0,109840.0,0.00093166]
[1761915517421,3.49043616,109850.0,109840.0,0.00093166]
[1761915520160,3.07724743,109850.0,109840.0,0.00093166]
[1761915520362,3.47205597,109850.0,109840.0,0.00093166]
[1761915523093,3.46313597,109850.0,109840.0,0.05141166]
[1761915523324,3.47205597,109850.0,109840.0,0.05141166]
[1761915523537,3.00477038,109850.0,109840.0,0.05141166]
[1761915523744,3.36580636,109850.0,109840.0,0.05141166]
[1761915523953,3.37472636,109850.0,109840.0,0.05141166]
[1761915524360,2.97991782,109850.0,109840.0,0.05141166]
[1761915524584,2.97991782,109850.0,109840.0,0.00093166]
[1761915524585,3.37272636,109850.0,109840.0,0.00093166]
[1761915524798,3.43598071,109850.0,109840.0,0.00193166]
[1761915525008,3.45547701,109850.0,109840.0,0.00193166]
[1761915525843,3.49165929,109850.0,109840.0,0.00193166]
[1761915526046,3.49265929,109850.0,109840.0,0.00193166]
[1761915526690,3.48647187,109850.0,109840.0,0.00193166]
[1761915527199,3.49493564,109850.0,109840.0,0.00193166]
[1761915527602,3.48501564,109850.0,109840.0,0.00193166]
[1761915528236,3.50821428,109850.0,109840.0,0.00193166]
[1761915529720,3.49975051,109850.0,109840.0,0.00193166]
[1761915530151,3.50821479,109850.0,109840.0,0.00193166]
[1761915530767,3.50921479,109850.0,109840.0,0.00193166]
[1761915531666,3.50921479,109850.0,109840.0,0.00093166]
[1761915532073,3.51121479,109850.0,109840.0,0.00093166]
[1761915536426,3.51121797,109850.0,109840.0,0.00093166]
[1761915538324,3.49693933,109850.0,109840.0,0.00093166]
[1761915540954,3.91853109,109850.0,109840.0,0.00093166]
[1761915541424,3.52372255,109850.0,109840.0,0.00093166]
[1761915541641,2.67085112,109850.0,109840.0,0.00093166]
[1761915541907,3.47374768,109850.0,109840.0,0.00093166]
[1761915542121,3.48266768,109850.0,109840.0,0.00093166]
[1761915542487,2.20920931,109850.0,109840.0,0.18076978]
[1761915542687,0.01627948,109850.0,109840.0,0.19075149]
[1761915543263,0.002,109850.0,109840.0,0.19075149]
[1761915543571,0.001,109850.0,109840.0,0.19075149]
[1761915543787,0.001,109850.0,109840.0,0.19175149]
[1761915543997,2.0,109850.0,109840.0,0.19175149]
[1761915544196,2.0,109850.0,109840.0,0.19075149]
[1761915544613,2.0,109850.0,109840.0,0.19675149]
[1761915544995,2.0,109850.0,109840.0,0.19775149]
[1761915546325,2.39480854,109850.0,109840.0,0.19775149]
[1761915546538,0.39480854,109850.0,109840.0,0.19775149]
[1761915546729,2.0,109850.0,109840.0,0.2875705]
[1761915546990,0.52225505,109850.0,109840.0,0.07029337]
[1761915547178,0.52225505,109850.0,109840.0,0.19775149]
[1761915547386,2.0,109850.0,109840.0,0.19775149]
[1761915552379,2.0,109860.0,109850.0,0.12744651]
[1761915552590,2.0,109860.0,109850.0,0.21915821]
[1761915553704,2.0,109860.0,109850.0,0.22315821]
[1761915553949,2.0,109860.0,109850.0,0.22415821]
[1761915555888,2.12743491,109860.0,109850.0,0.22415821]
[1761915556093,0.52210861,109860.0,109850.0,0.22415821]
[1761915556504,0.3946737,109860.0,109850.0,0.22415821]
[1761915557982,0.3946737,109860.0,109850.0,0.22438002]
[1761915558398,2.53119867,109870.0,109860.0,0.12743491]
[1761915558605,2.53119867,109870.0,109860.0,0.17739491]
[1761915559668,2.53119867,109870.0,109860.0,0.17839491]
[1761915560083,2.53119867,109870.0,109860.0,0.2144074]
[1761915561149,2.53119867,109870.0,109860.0,0.08697249]
[1761915562664,2.53119867,109870.0,109860.0,0.05096]
[1761915566163,3.03353138,109870.0,109860.0,0.001]
[1761915566377,3.46504801,109870.0,109860.0,0.001]
[1761915567244,3.48192714,109870.0,109860.0,0.001]
[1761915567453,3.48152323,109870.0,109860.0,0.001]
[1761915568505,3.50097439,109870.0,109860.0,0.001]
[1761915568930,3.47419117,109870.0,109860.0,0.001]
[1761915569379,3.47319905,109870.0,109860.0,0.001]
[1761915569594,3.46527905,109870.0,109860.0,0.01683]
[1761915569816,3.03687184,109870.0,109860.0,0.02829]
[1761915570020,3.02891271,109870.0,109860.0,0.001]
[1761915570232,3.44047846,109870.0,109860.0,0.001]
[1761915570679,3.46093831,109870.0,109860.0,0.001]
[1761915570891,3.46938445,109870.0,109860.0,0.001]
[1761915571104,3.49693558,109870.0,109860.0,0.001]
[1761915571953,3.31070889,109870.0,109860.0,0.001]
[1761915572229,3.31981055,109870.0,109860.0,0.001]
[1761915574815,3.34659377,109870.0,109860.0,0.001]
[1761915575263,3.74126747,109870.0,109860.0,0.001]
[1761915575482,3.74126747,109870.0,109840.0,0.000488]
[1761915575483,2.75810497,109850.0,109840.0,0.0002662]
[1761915575720,2.89272202,109850.0,109840.0,0.0002662]
[1761915575968,2.95597637,109850.0,109840.0,0.0002662]
[1761915576888,2.95797637,109850.0,109840.0,0.0002662]
[1761915577338,3.02495272,109850.0,109840.0,0.0002662]
[1761915578221,3.02795272,109850.0,109840.0,0.0002662]
[1761915578438,0.9539878,109840.0,109830.0,0.0014]
[1761915578663,2.92860924,109840.0,109830.0,0.0014]
[1761915578900,2.94803913,109840.0,109830.0,0.0014]
[1761915579350,2.92860924,109840.0,109830.0,0.0014]
[1761915580042,2.92960924,109840.0,109830.0,0.0014]
[1761915580236,2.94389454,109840.0,109830.0,0.0014]
[1761915580452,2.94489454,109840.0,109830.0,0.0014]
[1761915581339,2.92800249,109840.0,109830.0,0.0014]
[1761915581556,2.94484981,109840.0,109830.0,0.0014]
[1761915581780,2.94484981,109840.0,109830.0,0.00184372]
[1761915581998,2.15550241,109840.0,109830.0,0.00184372]
[1761915582223,2.94484981,109840.0,109830.0,0.00184372]
[1761915582450,2.50577766,109840.0,109830.0,0.00184372]
[1761915582671,2.49685766,109840.0,109830.0,0.00184372]
[1761915582891,2.49149236,109840.0,109830.0,0.00184372]
[1761915585121,2.48257236,109840.0,109830.0,0.00184372]
[1761915585544,2.49149236,109840.0,109830.0,0.00184372]
[1761915585763,2.4968575,109840.0,109830.0,0.00184372]
[1761915586458,2.4968575,109840.0,109830.0,0.01760372]
[1761915586675,2.05608152,109840.0,109830.0,0.05270372]
[1761915586900,2.79075522,109840.0,109830.0,0.05270372]
[1761915587106,2.77647008,109840.0,109830.0,0.05270372]
[1761915587577,2.77547008,109840.0,109830.0,0.05270372]
[1761915587793,2.77447008,109840.0,109830.0,0.05370372]
[1761915588450,2.78339008,109840.0,109830.0,0.05370372]
[1761915588903,2.77447008,109840.0,109830.0,0.05370372]
[1761915590709,2.77447008,109840.0,109830.0,0.03055372]
[1761915590900,2.77447008,109840.0,109830.0,0.05370372]
[1761915592713,2.28997737,109840.0,109830.0,0.07191368]
[1761915592947,2.28997737,109840.0,109830.0,0.05370372]
[1761915593165,2.55719295,109840.0,109830.0,0.1993834]
[1761915593356,2.21719295,109840.0,109830.0,0.1993834]
[1761915593778,2.34465107,109840.0,109830.0,0.1993834]
[1761915594422,2.34465107,109840.0,109830.0,0.18117344]
[1761915596136,2.34465107,109840.0,109830.0,0.05370372]
[1761915596830,2.34465107,109840.0,109830.0,0.18117344]
[1761915598551,2.34465107,109840.0,109830.0,0.23139482]
[1761915598552,4.819e-05,109840.0,109830.0,0.23139482]
[1761915598755,4.819e-05,109840.0,109830.0,0.21318486]
[1761915603738,0.12750631,109840.0,109830.0,0.21318486]
[1761915604170,4.819e-05,109840.0,109830.0,0.21318486]
[1761915604612,4.819e-05,109840.0,109830.0,0.30300387]
[1761915604816,4.819e-05,109840.0,109830.0,0.69767757]
[1761915605027,4.819e-05,109840.0,109830.0,0.30300387]
[1761915605469,4.819e-05,109840.0,109830.0,0.30200387]
[1761915605912,4.819e-05,109840.0,109830.0,0.30300387]
[1761915606138,4.819e-05,109840.0,109830.0,0.30400387]
[1761915606402,4.819e-05,109840.0,109830.0,0.30300387]
[1761915606614,4.819e-05,109840.0,109830.0,0.30900387]
[1761915607948,0.52218001,109840.0,109830.0,0.21918486]
[1761915608193,0.12750631,109840.0,109830.0,0.21918486]
[1761915608610,4.819e-05,109840.0,109830.0,0.21918486]
[1761915611382,0.39480253,109840.0,109830.0,0.21918486]
[1761915612001,4.819e-05,109840.0,109830.0,0.21918486]
[1761915612213,0.39480253,109840.0,109830.0,0.21918486]
[1761915612634,4.819e-05,109840.0,109830.0,0.21918486]
[1761915612853,0.39480253,109840.0,109830.0,0.21918486]
[1761915613081,0.91701499,109840.0,109830.0,0.05970372]
[1761915613299,2.93485499,109840.0,109830.0,0.03655372]
[1761915613650,2.13642631,109840.0,109830.0,0.05970372]
[1761915613884,2.92593499,109840.0,109830.0,0.05370372]
[1761915614327,2.12750631,109840.0,109830.0,0.05270372]
[1761915614571,2.91701499,109840.0,109830.0,0.05570372]
[1761915614770,2.91701499,109840.0,109830.0,0.05670372]
[1761915615526,2.91701499,109840.0,109830.0,0.18417344]
[1761915615731,2.52226065,109840.0,109830.0,0.18417344]
[1761915616102,2.39480253,109840.0,109830.0,0.18417344]
[1761915616307,2.52226065,109840.0,109830.0,0.18417344]
[1761915617599,2.52226065,109840.0,109830.0,0.05670372]
[1761915617833,2.91701499,109840.0,109830.0,0.05670372]
[1761915619656,2.92593499,109840.0,109830.0,0.03355372]
[1761915620708,2.13642631,109840.0,109830.0,0.03355372]
[1761915620927,2.7152513,109840.0,109830.0,0.07710415]
[1761915621153,2.7152513,109840.0,109830.0,0.20457387]
[1761915621154,2.9169668,109840.0,109830.0,0.20457387]
[1761915621369,2.12745812,109840.0,109830.0,0.20457387]
[1761915621610,2.52221246,109840.0,109830.0,0.20457387]
[1761915622706,2.52221246,109840.0,109830.0,0.07710415]
[1761915623438,2.52221246,109840.0,109830.0,0.20457387]
[1761915624076,2.52221246,109840.0,109830.0,0.07710415]
[1761915624501,2.52221246,109840.0,109830.0,0.05746372]
[1761915627535,2.52221246,109840.0,109830.0,0.18493344]
[1761915627740,2.0,109840.0,109830.0,0.18493344]
[1761915627943,0.52221246,109840.0,109830.0,0.18493344]
[1761915628140,0.39475434,109840.0,109830.0,0.18493344]
[1761915628369,0.39475434,109840.0,109830.0,0.25679628]
[1761915628533,2.0,109840.0,109830.0,0.25679628]
[1761915628711,2.0,109840.0,109830.0,0.18493344]
[1761915628914,2.39475434,109840.0,109830.0,0.18493344]
[1761915629161,0.39475434,109840.0,109830.0,0.18493344]
[1761915629521,2.0,109840.0,109830.0,0.18493344]
[1761915629999,0.39475434,109840.0,109830.0,0.18493344]
[1761915630200,2.0,109840.0,109830.0,0.25770686]
[1761915631763,0.39475434,109840.0,109830.0,0.18493344]
[1761915632406,2.0,109840.0,109830.0,0.18493344]
[1761915632623,0.12744792,109850.0,109830.0,0.18493344]
[1761915632764,0.12744792,109850.0,109830.0,0.14481972]
[1761915632980,0.52220085,109850.0,109840.0,0.15396812]
[1761915633188,0.52220085,109850.0,109840.0,0.02651]
[1761915633387,0.52220085,109850.0,109840.0,0.05042]
[1761915634036,2.52220085,109850.0,109840.0,0.05042]
[1761915634502,2.52220085,109850.0,109840.0,0.05142]
[1761915634706,2.92587519,109850.0,109840.0,0.05142]
[1761915634930,2.92587519,109850.0,109840.0,0.02751]
[1761915635146,2.12744651,109850.0,109840.0,0.02751]
[1761915635376,2.53112085,109850.0,109840.0,0.05142]
[1761915635585,2.52220085,109850.0,109840.0,0.05142]
[1761915636986,2.52220085,109850.0,109840.0,0.19810196]
[1761915638181,2.52220085,109850.0,109840.0,0.1983238]
[1761915638582,2.52220085,109850.0,109840.0,0.07086568]
[1761915639243,2.52220085,109850.0,109840.0,0.17909996]
[1761915639460,0.52220085,109850.0,109840.0,0.05164184]
[1761915639916,0.12744651,109850.0,109840.0,0.05164184]
[1761915640141,0.52220085,109850.0,109840.0,0.17909996]
[1761915640327,2.1365374,109860.0,109850.0,0.12744651]
[1761915640571,2.1365374,109860.0,109850.0,0.05042]
[1761915640572,2.87129174,109860.0,109850.0,0.05042]
[1761915641274,2.87129174,109860.0,109850.0,0.17786651]
[1761915641486,2.0,109860.0,109850.0,0.17786651]
[1761915641699,0.39475434,109860.0,109850.0,0.17786651]
[1761915641898,2.39475434,109860.0,109850.0,0.17786651]
[1761915642134,2.0,109860.0,109850.0,0.17786651]
[1761915642353,0.39575434,109860.0,109850.0,0.24993501]
[1761915642767,0.39775434,109860.0,109850.0,0.25093501]
[1761915643177,0.52318925,109860.0,109850.0,0.25093501]
[1761915643380,0.39575434,109860.0,109850.0,0.17886651]
[1761915643584,0.39575434,109860.0,109850.0,0.18186651]
[1761915644219,0.001,109860.0,109850.0,0.18186651]
[1761915644417,0.001,109860.0,109850.0,0.20007315]
[1761915644846,0.001,109860.0,109850.0,0.28989216]
[1761915645085,0.001,109860.0,109850.0,0.35495658]
[1761915648392,0.001,109860.0,109850.0,0.74971092]
[1761915648616,0.001,109860.0,109850.0,0.35495658]
[1761915648914,0.39575434,109860.0,109850.0,0.35495658]
[1761915649139,0.39575434,109860.0,109850.0,0.26513757]
[1761915649359,0.39575434,109860.0,109850.0,0.18186651]
[1761915650288,0.52318925,109860.0,109850.0,0.18186651]
[1761915651240,2.91794359,109860.0,109850.0,0.05442]
[1761915651486,2.52218925,109860.0,109850.0,0.05442]
[1761915651723,2.91694359,109860.0,109850.0,0.05442]
[1761915652437,2.91694359,109860.0,109850.0,0.07466841]
[1761915652699,2.39475434,109860.0,109850.0,0.20211492]
[1761915653611,0.39475434,109860.0,109850.0,0.20211492]
[1761915654870,2.62742403,109870.0,109860.0,0.12743491]
[1761915655076,2.52266154,109870.0,109860.0,0.17722491]
[1761915655317,2.52266154,109870.0,109860.0,0.21124489]
[1761915656364,2.52266154,109870.0,109860.0,0.21224489]
[1761915656558,2.39523751,109870.0,109860.0,0.21224489]
[1761915656823,2.52266082,109870.0,109860.0,0.21224489]
[1761915659320,0.52266082,109870.0,109860.0,0.21224489]
[1761915660590,0.00048317,109870.0,109860.0,0.21224489]
[1761915660800,0.39523751,109870.0,109860.0,0.21224489]
[1761915661010,0.00048317,109870.0,109860.0,0.21224489]
[1761915661229,0.00048317,109870.0,109860.0,0.60699923]
[1761915661443,0.00048317,109870.0,109860.0,0.21224489]
[1761915664442,0.39523751,109870.0,109860.0,0.21224489]
[1761915665089,0.00048317,109870.0,109860.0,0.21224489]
[1761915667685,0.39523751,109870.0,109860.0,0.21224489]
[1761915668592,0.00048317,109870.0,109860.0,0.21224489]
[1761915670990,0.00048317,109870.0,109860.0,0.60699923]
[1761915671210,0.00048317,109870.0,109860.0,0.21224489]
[1761915672123,0.00048317,109870.0,109860.0,0.21124489]
[1761915672553,0.00048317,109870.0,109860.0,0.60799923]
[1761915673269,0.00048317,109870.0,109860.0,0.61299923]
[1761915673481,0.00048317,109870.0,109860.0,0.21824489]
[1761915674574,0.00048317,109870.0,109860.0,0.70253964]
[1761915675897,0.00048317,109870.0,109860.0,0.3080639]
[1761915677848,0.00048317,109870.0,109860.0,0.70253964]
[1761915679286,0.00048317,109870.0,109860.0,0.3080639]
[1761915679520,0.00048317,109870.0,109860.0,1.09701538]
[1761915679724,0.00048317,109870.0,109860.0,1.04253964]
[1761915680148,0.00048317,109870.0,109860.0,1.05163882]
[1761915680560,0.00048317,109870.0,109860.0,1.44611456]
[1761915681954,0.00048317,109870.0,109860.0,1.44411456]
[1761915682180,0.00048317,109870.0,109860.0,1.44711456]
[1761915682399,0.00048317,109870.0,109860.0,1.44211456]
[1761915682601,0.00048317,109870.0,109860.0,1.45011456]
[1761915683010,0.00048317,109870.0,109860.0,1.49629683]
[1761915683220,0.00048317,109870.0,109860.0,1.50629682]
[1761915684562,0.00048317,109870.0,109860.0,1.49629683]
[1761915684787,0.00048317,109870.0,109860.0,1.50629682]
[1761915685226,0.00048317,109870.0,109860.0,1.49629683]
[1761915685457,0.00048317,109870.0,109860.0,1.50629682]
[1761915685914,0.00048317,109870.0,109860.0,0.66116308]
[1761915686132,0.00048317,109870.0,109860.0,1.05563882]
[1761915687252,2.0,109900.0,109890.0,0.13863248]
[1761915687473,2.00013194,109900.0,109890.0,0.16726945]
[1761915687700,0.00013194,109900.0,109890.0,0.16726945]
[1761915687907,0.00013194,109900.0,109890.0,0.20768945]
[1761915688558,0.12752047,109900.0,109890.0,0.20768945]
[1761915688772,0.12752047,109900.0,109890.0,0.20868945]
[1761915690514,0.00013194,109900.0,109890.0,0.20868945]
[1761915691999,0.12752047,109900.0,109890.0,0.20868945]
[1761915693100,0.12796382,109900.0,109890.0,0.20868945]
[1761915693526,0.00057529,109900.0,109890.0,0.20868945]
[1761915693742,0.12796382,109900.0,109890.0,0.20868945]
[1761915693945,0.12796382,109900.0,109890.0,0.20869709]
[1761915694617,0.00057529,109900.0,109890.0,0.20869709]
[1761915695232,0.12796382,109900.0,109890.0,0.20869709]
[1761915697119,0.00057529,109900.0,109890.0,0.20869709]
[1761915709950,0.00057529,109900.0,109890.0,0.2985161]
[1761915710203,0.00057529,109900.0,109890.0,1.43746757]
[1761915710428,0.17351761,109950.0,109930.0,0.12734719]
[1761915710644,2.0,109940.0,109930.0,0.20429577]
[1761915710874,0.00846259,109940.0,109930.0,0.20429577]
[1761915711091,0.12734218,109940.0,109930.0,0.07694858]
[1761915711304,0.13580477,109940.0,109930.0,0.02642]
[1761915711488,0.13580477,109940.0,109930.0,0.0501]
[1761915711727,0.53978051,109940.0,109930.0,0.02642]
[1761915711936,2.53978051,109940.0,109930.0,0.02742]
[1761915712578,2.53131792,109940.0,109930.0,0.02742]
[1761915713013,2.53131792,109940.0,109930.0,0.033642]
[1761915713220,2.12734218,109940.0,109930.0,0.057322]
[1761915713449,2.52181792,109940.0,109930.0,0.057322]
[1761915715436,2.12734218,109940.0,109930.0,0.057322]
[1761915715874,0.56999014,109950.0,109930.0,0.20286916]
[1761915715875,0.54264427,109950.0,109930.0,0.20286916]
[1761915716095,2.00088628,109940.0,109930.0,0.14569577]
[1761915716332,0.00088628,109940.0,109930.0,0.14569577]
[1761915716542,0.00088628,109940.0,109930.0,0.16388916]
[1761915716770,0.00088628,109940.0,109930.0,0.20286916]
[1761915716999,0.12822846,109940.0,109930.0,0.18367577]
[1761915717220,0.12822846,109940.0,109930.0,0.056322]
[1761915717704,0.00088628,109940.0,109930.0,0.27349478]
[1761915718140,0.00088628,109940.0,109930.0,0.27449478]
[1761915718594,0.00088628,109940.0,109930.0,0.27349478]
[1761915719243,0.00088628,109940.0,109930.0,0.27449478]
[1761915719902,0.00088628,109940.0,109930.0,0.27749478]
[1761915720995,0.12822846,109940.0,109930.0,0.27749478]
[1761915721247,0.5227042,109940.0,109930.0,0.060322]
[1761915722197,0.12822846,109940.0,109930.0,0.060322]
[1761915722427,0.12822846,109940.0,109930.0,0.18767577]
[1761915722648,0.12822846,109940.0,109930.0,0.060322]
[1761915723753,0.00088628,109940.0,109930.0,0.20586916]
[1761915723964,0.00088628,109940.0,109930.0,0.18767577]
[1761915724182,0.12822846,109940.0,109930.0,0.18767577]
[1761915724617,0.12822846,109940.0,109930.0,0.060322]
[1761915724837,0.12822846,109940.0,109930.0,0.07851539]
[1761915728372,2.5322042,109940.0,109930.0,0.004]
[1761915728583,2.55952274,109940.0,109930.0,0.004]
[1761915729210,2.55952274,109940.0,109930.0,0.0193]
[1761915729420,0.00088628,109940.0,109930.0,0.05126]
[1761915729626,0.12822846,109940.0,109930.0,0.05126]
[1761915729830,0.13022846,109940.0,109930.0,0.07205388]
[1761915730041,3.0247042,109940.0,109930.0,0.07105388]
[1761915730263,2.5247042,109940.0,109930.0,0.05026]
[1761915730507,2.5227042,109940.0,109930.0,0.05026]
[1761915730700,2.5227042,109940.0,109930.0,0.05126]
[1761915731762,2.0,109940.0,109930.0,0.05126]
[1761915731945,2.12734218,109940.0,109930.0,0.05126]
[1761915732143,2.12734218,109940.0,109930.0,0.07023438]
[1761915733177,2.12734218,109940.0,109930.0,0.21263389]
[1761915733382,2.0,109940.0,109930.0,0.19758815]
[1761915733581,2.52140561,109940.0,109930.0,0.19758815]
[1761915734018,2.52140561,109940.0,109930.0,0.07023438]
[1761915734224,2.91546904,109940.0,109930.0,0.07023438]
[1761915734443,2.91546904,109940.0,109930.0,0.05126]
[1761915734682,2.93446904,109940.0,109930.0,0.001]
[1761915734904,2.970225,109940.0,109930.0,0.001]
[1761915735115,3.46937966,109940.0,109930.0,0.001]
[1761915735331,3.84556194,109940.0,109930.0,0.001]
[1761915735535,2.62736535,109920.0,109910.0,0.03496]
[1761915735740,2.92499221,109920.0,109910.0,0.03496]
[1761915735918,2.92499221,109920.0,109910.0,0.05079]
[1761915736123,2.92499221,109920.0,109910.0,0.0518375]
[1761915736752,2.92499221,109920.0,109910.0,0.0548375]
[1761915737373,2.92499221,109920.0,109910.0,0.0558375]
[1761915737582,2.93449221,109920.0,109910.0,0.0319975]
[1761915738008,2.93449221,109920.0,109910.0,0.0558375]
[1761915738009,2.92499221,109920.0,109910.0,0.0558375]
[1761915739292,2.39406343,109920.0,109910.0,0.18321444]
[1761915739500,2.39406343,109920.0,109910.0,0.20028908]
[1761915740146,2.52142878,109920.0,109910.0,0.07291214]
[1761915740350,2.52142878,109920.0,109910.0,0.0558375]
[1761915741017,2.91549221,109920.0,109910.0,0.0558375]
[1761915741447,2.92499221,109920.0,109910.0,0.0319975]
[1761915742506,2.91549221,109920.0,109910.0,0.0550475]
[1761915743152,2.52142878,109920.0,109910.0,0.0550475]
[1761915744669,2.12736535,109920.0,109910.0,0.0550475]
[1761915744892,2.52142878,109920.0,109910.0,0.0550475]
[1761915745086,2.12736535,109920.0,109910.0,0.0550475]
[1761915745254,2.52142878,109920.0,109910.0,0.0550475]
[1761915745595,2.52142878,109920.0,109910.0,0.18242444]
[1761915745795,2.52142878,109920.0,109910.0,0.0550475]
[1761915746036,2.12736535,109920.0,109910.0,0.0550475]
[1761915746224,2.52142878,109920.0,109910.0,0.18242444]
[1761915746428,2.52142878,109920.0,109910.0,0.0550475]
[1761915747884,2.12736535,109920.0,109910.0,0.0550475]
[1761915748091,2.52142878,109920.0,109910.0,0.0550475]
[1761915748528,0.55827768,109930.0,109910.0,0.63526569]
[1761915748738,2.0,109920.0,109910.0,0.20232226]
[1761915748942,0.54877768,109930.0,109910.0,0.21890226]
[1761915749151,2.0,109920.0,109910.0,0.20232226]
[1761915749384,2.0,109920.0,109910.0,0.14354444]
[1761915749587,2.0,109920.0,109910.0,0.15712444]
[1761915749801,2.0,109920.0,109910.0,0.18117444]
[1761915750949,2.0,109920.0,109910.0,0.18017444]
[1761915751382,2.0,109920.0,109910.0,0.18317444]
[1761915751599,2.0,109920.0,109910.0,0.25476496]
[1761915752327,0.12736535,109920.0,109910.0,0.25476496]
[1761915754211,2.0,109920.0,109910.0,0.25476496]
[1761915755412,2.12736535,109920.0,109910.0,0.25476496]
[1761915755696,0.12736535,109920.0,109910.0,0.25476496]
[1761915756176,0.52142878,109920.0,109910.0,0.25476496]
[1761915756417,2.52142878,109920.0,109910.0,0.0557975]
[1761915756935,2.52142878,109920.0,109910.0,0.18317444]
[1761915757164,2.39406343,109920.0,109910.0,0.18317444]
[1761915757378,0.54877768,109930.0,109910.0,0.57723787]
[1761915757589,2.0,109920.0,109910.0,0.23336165]
[1761915758028,2.0,109920.0,109910.0,0.24994165]
[1761915758256,2.12736535,109920.0,109910.0,0.27299165]
[1761915758476,0.12736535,109920.0,109910.0,0.26999165]
[1761915758688,0.12736535,109920.0,109910.0,0.27099165]
[1761915759119,2.0,109920.0,109910.0,0.27099165]
[1761915760270,0.12736535,109920.0,109910.0,0.26999165]
[1761915760510,0.52142878,109920.0,109910.0,0.26999165]
[1761915760743,0.52142878,109920.0,109910.0,0.27299165]
[1761915762220,0.52142878,109920.0,109910.0,0.27299345]
[1761915763045,2.39406343,109920.0,109910.0,0.18317444]
[1761915763312,0.39406343,109920.0,109910.0,0.18317444]
[1761915763724,2.54877768,109930.0,109920.0,0.12736535]
[1761915763930,2.54877768,109930.0,109920.0,0.18036535]
[1761915764144,2.15471425,109930.0,109920.0,0.18036535]
[1761915764373,2.54877768,109930.0,109920.0,0.18036535]
[1761915764986,2.54877768,109930.0,109920.0,0.23806281]
[1761915765662,2.54877768,109930.0,109920.0,0.054]
[1761915766785,2.02735093,109930.0,109920.0,0.18136535]
[1761915767047,2.5309172,109930.0,109920.0,0.03002]
[1761915767266,2.5309172,109930.0,109920.0,0.054]
[1761915767653,2.5214172,109930.0,109920.0,0.054]
[1761915768469,2.5214172,109930.0,109920.0,0.03002]
[1761915768667,2.5214172,109930.0,109920.0,0.054]
[1761915769954,2.5214172,109930.0,109920.0,0.07335444]
[1761915770738,2.5164172,109930.0,109920.0,0.07335444]
[1761915773327,2.12235377,109930.0,109920.0,0.20071979]
[1761915773528,2.5164172,109930.0,109920.0,0.20071979]
[1761915773892,2.5164172,109930.0,109920.0,0.18136535]
[1761915774190,2.12235377,109930.0,109920.0,0.18136535]
[1761915774404,2.5164172,109930.0,109920.0,0.18136535]
[1761915774676,1.995,109930.0,109920.0,0.57542878]
[1761915774888,0.54758176,109950.0,109930.0,0.12735377]
[1761915775102,0.12734218,109940.0,109930.0,0.11568016]
[1761915775303,0.12734218,109940.0,109930.0,0.25813393]
[1761915775712,2.0,109940.0,109930.0,0.17887377]
[1761915777407,2.002,109940.0,109930.0,0.17887377]
[1761915777607,0.002,109940.0,109930.0,0.17887377]
[1761915778277,0.002,109940.0,109930.0,0.59113059]
[1761915778547,0.002,109940.0,109930.0,0.5729372]
[1761915778770,0.05353269,109950.0,109940.0,0.12734218]
[1761915778978,0.03926547,109950.0,109940.0,0.17886218]
[1761915779193,0.01191975,109950.0,109940.0,0.17886218]
[1761915779865,0.002,109950.0,109940.0,0.16376218]
[1761915780043,0.002,109950.0,109940.0,0.15488218]
[1761915780246,0.002,109950.0,109940.0,0.23273802]
[1761915780455,0.002,109950.0,109940.0,0.25671802]
[1761915780694,2.0,109950.0,109940.0,0.25671802]
[1761915781112,2.0,109950.0,109940.0,0.17886218]
[1761915781339,2.0110121,109950.0,109940.0,0.17886218]
[1761915781550,0.0110121,109950.0,109940.0,0.17886218]
[1761915781764,0.0273436,109960.0,109950.0,0.1273306]
[1761915781982,2.52138245,109960.0,109950.0,0.05152]
[1761915782211,2.12731902,109960.0,109950.0,0.07973212]
[1761915782403,2.52160393,109960.0,109950.0,0.07973212]
[1761915782651,2.52160393,109960.0,109950.0,0.05152]
[1761915782875,2.1275405,109960.0,109950.0,0.05152]
[1761915783098,2.52160393,109960.0,109950.0,0.05152]
[1761915783520,2.52160393,109960.0,109950.0,0.05252]
[1761915783741,2.52160393,109960.0,109950.0,0.20056306]
[1761915783947,2.52160393,109960.0,109950.0,0.1798506]
[1761915784151,2.52160393,109960.0,109950.0,0.05252]
[1761915785023,2.53248267,109960.0,109950.0,0.05252]
[1761915786148,3.02586511,109960.0,109950.0,0.02854]
[1761915786360,3.06270921,109960.0,109950.0,0.001]
[1761915786578,3.91074671,109960.0,109950.0,0.001]
[1761915786793,3.93015123,109960.0,109950.0,0.001]
[1761915787460,2.46734218,109940.0,109930.0,0.00082573]
[1761915787669,3.27446904,109940.0,109930.0,0.0009706]
[1761915788097,3.3018179,109940.0,109930.0,0.0009706]
[1761915788511,3.3018179,109940.0,109930.0,0.0160706]
[1761915789397,3.3018179,109940.0,109930.0,0.0170706]
[1761915789553,3.3018179,109940.0,109930.0,0.01657253]
[1761915791557,3.27446904,109940.0,109930.0,0.01657253]
[1761915791766,3.27446904,109940.0,109930.0,0.00147253]
[1761915793458,2.88050269,109940.0,109930.0,0.00147253]
[1761915793675,2.9808217,109940.0,109930.0,0.00147253]
[1761915793902,3.04432252,109940.0,109930.0,0.00147253]
[1761915794114,3.05274084,109940.0,109930.0,0.00147253]
[1761915794770,3.05274084,109940.0,109930.0,0.00047253]
[1761915795030,3.05374084,109940.0,109930.0,0.00047253]
[1761915795199,3.0304223,109940.0,109930.0,0.00047253]
[1761915795860,3.06336015,109940.0,109930.0,0.00047253]
[1761915796730,3.09071246,109940.0,109930.0,0.00047253]
[1761915796959,3.09656196,109940.0,109930.0,0.00047253]
[1761915797179,3.06037968,109940.0,109930.0,0.00047253]
[1761915797397,3.09656196,109940.0,109930.0,0.00047253]
[1761915798993,3.04987968,109940.0,109930.0,0.00047253]
[1761915799200,2.50561,109940.0,109930.0,0.02814253]
[1761915799416,2.94698102,109940.0,109930.0,0.02814253]
[1761915799640,2.0,109930.0,109920.0,0.13454091]
[1761915799869,4.824e-05,109930.0,109920.0,0.11920684]
[1761915800094,0.12740201,109930.0,109920.0,0.13486684]
[1761915800534,4.824e-05,109930.0,109920.0,0.163245]
[1761915801693,0.12740201,109930.0,109920.0,0.20592351]
[1761915801904,0.12740201,109930.0,109920.0,0.20692351]
[1761915802332,4.824e-05,109930.0,109920.0,0.20692351]
[1761915802804,4.824e-05,109930.0,109920.0,0.17854535]
[1761915805400,4.824e-05,109930.0,109920.0,0.17876695]
[1761915812274,4.824e-05,109930.0,109920.0,0.62406036]
[1761915812503,4.824e-05,109930.0,109920.0,0.17876695]
[1761915812746,4.824e-05,109930.0,109920.0,0.19349442]
[1761915812929,4.824e-05,109930.0,109920.0,0.27044517]
[1761915813143,4.824e-05,109930.0,109920.0,0.2557177]